[Event "Titled Tuesday Blitz October 25 Late 2022"]
[White "Aguilar, Juan"]
[Black "Ali Abdullahi, Farah"]
[WhiteFideId "3800091"]
[BlackFideId "16100212"]
[WhiteElo "2427"]
[BlackElo "2253"]
[Result "1-0"]
[Round "11"]
[TimeControl "180+1"]
[Date "2022.10.26"]
[WhiteClock "0:00:10"]
[BlackClock "0:00:08"]

1. d4 {[%clk 0:03:00]}  e6 {[%clk 0:02:59]} 2. c4 {[%clk 0:03:01]}  d5 {[%clk 0:02:59]} 3. Nf3 {[%clk 0:03:01]}  c5 {[%clk 0:02:59]} 4. cxd5 {[%clk 0:03:01]}  exd5 {[%clk 0:02:59]} 5. Nc3 {[%clk 0:03:01]}  Nc6 {[%clk 0:02:59]} 6. g3 {[%clk 0:03:01]}  Nf6 {[%clk 0:02:59]} 7. Bg2 {[%clk 0:03:02]}  Be7 {[%clk 0:03:00]} 8. O-O {[%clk 0:03:02]}  O-O {[%clk 0:03:00]} 9. dxc5 {[%clk 0:03:02]}  Bxc5 {[%clk 0:03:00]} 10. Na4 {[%clk 0:03:02]}  Bb6 {[%clk 0:02:59]} 11. Nxb6 {[%clk 0:03:01]}  axb6 {[%clk 0:02:59]} 12. Qb3 {[%clk 0:02:54]}  Be6 {[%clk 0:02:52]} 13. Ng5 {[%clk 0:02:51]}  Bg4 {[%clk 0:02:40]} 14. Re1 {[%clk 0:02:47]}  Re8 {[%clk 0:02:39]} 15. Be3 {[%clk 0:02:41]}  h6 {[%clk 0:02:36]} 16. Bxb6 {[%clk 0:02:36]}  Qd7 {[%clk 0:02:21]} 17. Nf3 {[%clk 0:02:36]}  Ra6 {[%clk 0:02:11]} 18. Rad1 {[%clk 0:02:32]}  Na5 {[%clk 0:02:09]} 19. Bxa5 {[%clk 0:02:31]}  Rxa5 {[%clk 0:02:08]} 20. Qc3 {[%clk 0:02:29]}  Rxa2 {[%clk 0:02:03]} 21. Ne5 {[%clk 0:02:28]}  Qc8 {[%clk 0:01:59]} 22. Nxg4 {[%clk 0:02:23]}  Qxg4 {[%clk 0:01:59]} 23. Qb3 {[%clk 0:02:11]}  Ra5 {[%clk 0:01:39]} 24. Bf3 {[%clk 0:02:03]}  Qf5 {[%clk 0:01:28]} 25. Qxb7 {[%clk 0:01:59]}  Qc2 {[%clk 0:01:23]} 26. Qb4 {[%clk 0:01:52]}  Qc7 {[%clk 0:01:16]} 27. Rc1 {[%clk 0:01:49]}  Qa7 {[%clk 0:01:15]} 28. Red1 {[%clk 0:01:35]}  Rb8 {[%clk 0:01:13]} 29. Qd2 {[%clk 0:01:32]}  Rab5 {[%clk 0:01:12]} 30. Rc2 {[%clk 0:01:15]}  Qa2 {[%clk 0:01:11]} 31. Rdc1 {[%clk 0:01:07]}  Rxb2 {[%clk 0:01:09]} 32. Rxb2 {[%clk 0:01:03]}  Qxb2 {[%clk 0:01:08]} 33. Qxb2 {[%clk 0:01:02]}  Rxb2 {[%clk 0:01:08]} 34. Rc8+ {[%clk 0:01:01]}  Kh7 {[%clk 0:01:08]} 35. Rd8 {[%clk 0:01:01]}  Rb5 {[%clk 0:01:06]} 36. Kg2 {[%clk 0:00:55]}  Kg6 {[%clk 0:01:04]} 37. h4 {[%clk 0:00:55]}  Kf5 {[%clk 0:01:02]} 38. Ra8 {[%clk 0:00:50]}  g5 {[%clk 0:00:53]} 39. hxg5 {[%clk 0:00:44]}  hxg5 {[%clk 0:00:53]} 40. e3 {[%clk 0:00:36]}  g4 {[%clk 0:00:48]} 41. Be2 {[%clk 0:00:36]}  Rb2 {[%clk 0:00:48]} 42. Bd3+ {[%clk 0:00:36]}  Ke6 {[%clk 0:00:40]} 43. Ra6+ {[%clk 0:00:34]}  Ke5 {[%clk 0:00:38]} 44. Ra7 {[%clk 0:00:33]}  Rd2 {[%clk 0:00:36]} 45. Bb1 {[%clk 0:00:29]}  Rd1 {[%clk 0:00:35]} 46. Ba2 {[%clk 0:00:24]}  Ne4 {[%clk 0:00:29]} 47. Rxf7 {[%clk 0:00:20]}  Rd2 {[%clk 0:00:28]} 48. Bb1 {[%clk 0:00:20]}  Nc3 {[%clk 0:00:27]} 49. Bh7 {[%clk 0:00:19]}  Nd1 {[%clk 0:00:20]} 50. Kf1 {[%clk 0:00:15]}  Ke6 {[%clk 0:00:19]} 51. Rf4 {[%clk 0:00:15]}  Nxe3+ {[%clk 0:00:14]} 52. fxe3 {[%clk 0:00:14]}  Rh2 {[%clk 0:00:15]} 53. Bf5+ {[%clk 0:00:14]}  Ke5 {[%clk 0:00:14]} 54. Bxg4 {[%clk 0:00:14]}  Rb2 {[%clk 0:00:15]} 55. Be2 {[%clk 0:00:13]}  Rb3 {[%clk 0:00:14]} 56. Kf2 {[%clk 0:00:14]}  Rb2 {[%clk 0:00:14]} 57. Kf3 {[%clk 0:00:13]}  Rb3 {[%clk 0:00:14]} 58. Rh4 {[%clk 0:00:13]}  Ra3 {[%clk 0:00:14]} 59. Rh5+ {[%clk 0:00:13]}  Ke6 {[%clk 0:00:13]} 60. g4 {[%clk 0:00:13]}  d4 {[%clk 0:00:13]} 61. Rh6+ {[%clk 0:00:11]}  Ke5 {[%clk 0:00:12]} 62. Rh8 {[%clk 0:00:09]}  Rxe3+ {[%clk 0:00:12]} 63. Kf2 {[%clk 0:00:10]}  Kf4 {[%clk 0:00:12]} 64. Rf8+ {[%clk 0:00:10]}  Kg5 {[%clk 0:00:12]} 65. Rf5+ {[%clk 0:00:10]}  Kg6 {[%clk 0:00:08]} 66. Rd5 {[%clk 0:00:10]}  Re4 {[%clk 0:00:08]} 67. Bd3 {[%clk 0:00:10]} 1-0


[Site "https://www.chess.com"]

[Event "Titled Tuesday Blitz October 25 Late 2022"]
[White "Amburgy, Ryan"]
[Black "Hambleton, Aman"]
[WhiteFideId "30924820"]
[BlackFideId "2606577"]
[WhiteElo "2121"]
[BlackElo "2538"]
[Result "0-1"]
[Round "11"]
[TimeControl "180+1"]
[Date "2022.10.26"]
[WhiteClock "0:00:06"]
[BlackClock "0:00:10"]

1. Nf3 {[%clk 0:03:00]}  d5 {[%clk 0:02:59]} 2. e3 {[%clk 0:03:00]}  c6 {[%clk 0:02:59]} 3. c4 {[%clk 0:03:01]}  Nf6 {[%clk 0:02:58]} 4. Nc3 {[%clk 0:03:01]}  Bg4 {[%clk 0:02:58]} 5. Qb3 {[%clk 0:02:59]}  Qb6 {[%clk 0:02:56]} 6. cxd5 {[%clk 0:02:57]}  Bxf3 {[%clk 0:02:45]} 7. gxf3 {[%clk 0:02:56]}  Qxb3 {[%clk 0:02:39]} 8. axb3 {[%clk 0:02:57]}  Nxd5 {[%clk 0:02:40]} 9. d4 {[%clk 0:02:45]}  e6 {[%clk 0:02:37]} 10. Bd2 {[%clk 0:02:44]}  Nd7 {[%clk 0:02:35]} 11. Bd3 {[%clk 0:02:34]}  a6 {[%clk 0:02:33]} 12. Ke2 {[%clk 0:02:32]}  g6 {[%clk 0:02:25]} 13. e4 {[%clk 0:02:23]}  N5f6 {[%clk 0:02:19]} 14. Bf4 {[%clk 0:02:15]}  Nh5 {[%clk 0:02:16]} 15. Be3 {[%clk 0:02:10]}  Bd6 {[%clk 0:02:16]} 16. e5 {[%clk 0:01:59]}  Be7 {[%clk 0:02:06]} 17. Ne4 {[%clk 0:01:59]}  Ng7 {[%clk 0:02:02]} 18. Nd2 {[%clk 0:01:15]}  h5 {[%clk 0:01:56]} 19. Nc4 {[%clk 0:01:14]}  Rb8 {[%clk 0:01:52]} 20. Rac1 {[%clk 0:01:11]}  O-O {[%clk 0:01:52]} 21. Rhg1 {[%clk 0:01:10]}  Kh7 {[%clk 0:01:51]} 22. Bb1 {[%clk 0:01:01]}  Rfd8 {[%clk 0:01:51]} 23. Be4 {[%clk 0:00:59]}  Nf8 {[%clk 0:01:39]} 24. Rc2 {[%clk 0:00:53]}  Nf5 {[%clk 0:01:36]} 25. Bxf5 {[%clk 0:00:53]}  exf5 {[%clk 0:01:37]} 26. Rd1 {[%clk 0:00:35]}  Ne6 {[%clk 0:01:36]} 27. f4 {[%clk 0:00:35]}  Nc7 {[%clk 0:01:25]} 28. Nb6 {[%clk 0:00:30]}  Nd5 {[%clk 0:01:25]} 29. Nxd5 {[%clk 0:00:30]}  Rxd5 {[%clk 0:01:26]} 30. Rc4 {[%clk 0:00:30]}  Rbd8 {[%clk 0:01:22]} 31. Rdc1 {[%clk 0:00:30]}  Rb5 {[%clk 0:01:21]} 32. R1c3 {[%clk 0:00:30]}  Kg8 {[%clk 0:01:20]} 33. Kf3 {[%clk 0:00:28]}  Kf8 {[%clk 0:01:19]} 34. Ke2 {[%clk 0:00:29]}  Ke8 {[%clk 0:01:19]} 35. Kf3 {[%clk 0:00:29]}  Kd7 {[%clk 0:01:20]} 36. Ke2 {[%clk 0:00:28]}  Ke6 {[%clk 0:01:20]} 37. Kf3 {[%clk 0:00:29]}  Rdd5 {[%clk 0:01:17]} 38. Ke2 {[%clk 0:00:29]}  Bb4 {[%clk 0:01:14]} 39. Rc2 {[%clk 0:00:29]}  Ba5 {[%clk 0:01:13]} 40. Rc5 {[%clk 0:00:20]}  Rdxc5 {[%clk 0:01:01]} 41. Rxc5 {[%clk 0:00:20]}  Rxc5 {[%clk 0:01:01]} 42. dxc5 {[%clk 0:00:21]}  Bb4 {[%clk 0:00:55]} 43. Kd3 {[%clk 0:00:19]}  Kd5 {[%clk 0:00:55]} 44. f3 {[%clk 0:00:16]}  Bxc5 {[%clk 0:00:56]} 45. Bd2 {[%clk 0:00:17]}  Bd4 {[%clk 0:00:56]} 46. Bc1 {[%clk 0:00:16]}  c5 {[%clk 0:00:50]} 47. h3 {[%clk 0:00:16]}  b6 {[%clk 0:00:50]} 48. Kc2 {[%clk 0:00:17]}  b5 {[%clk 0:00:42]} 49. Kd3 {[%clk 0:00:17]}  Bf2 {[%clk 0:00:21]} 50. Bd2 {[%clk 0:00:16]}  Bg3 {[%clk 0:00:19]} 51. Bc1 {[%clk 0:00:16]}  Be1 {[%clk 0:00:18]} 52. Ke2 {[%clk 0:00:15]}  Bb4 {[%clk 0:00:18]} 53. Kd3 {[%clk 0:00:15]}  a5 {[%clk 0:00:19]} 54. Be3 {[%clk 0:00:14]}  a4 {[%clk 0:00:13]} 55. bxa4 {[%clk 0:00:14]}  bxa4 {[%clk 0:00:14]} 56. Bc1 {[%clk 0:00:14]}  c4+ {[%clk 0:00:14]} 57. Kc2 {[%clk 0:00:15]}  Kd4 {[%clk 0:00:13]} 58. Kd1 {[%clk 0:00:12]}  Kd3 {[%clk 0:00:13]} 59. h4 {[%clk 0:00:11]}  Ba5 {[%clk 0:00:12]} 60. e6 {[%clk 0:00:06]}  fxe6 {[%clk 0:00:13]} 61. b3 {[%clk 0:00:07]}  cxb3 {[%clk 0:00:11]} 62. Bd2 {[%clk 0:00:08]}  b2 {[%clk 0:00:11]} 63. Bxa5 {[%clk 0:00:06]}  b1=Q# {[%clk 0:00:10]} 0-1


[Site "https://www.chess.com"]

[Event "Titled Tuesday Blitz October 25 Late 2022"]
[White "Arnold, Ken"]
[Black "Rodriguez Santiago, Jaime"]
[WhiteFideId "2056836"]
[BlackFideId "3100898"]
[WhiteElo "2301"]
[BlackElo "2025"]
[Result "1-0"]
[Round "11"]
[TimeControl "180+1"]
[Date "2022.10.26"]
[WhiteClock "0:00:22"]
[BlackClock "0:00:12"]

1. d4 {[%clk 0:03:00]}  g6 {[%clk 0:02:55]} 2. c4 {[%clk 0:03:00]}  Bg7 {[%clk 0:02:53]} 3. Nf3 {[%clk 0:03:00]}  d6 {[%clk 0:02:52]} 4. Nc3 {[%clk 0:03:00]}  Nf6 {[%clk 0:02:52]} 5. Bf4 {[%clk 0:03:00]}  O-O {[%clk 0:02:51]} 6. h3 {[%clk 0:03:00]}  c6 {[%clk 0:02:51]} 7. e3 {[%clk 0:03:01]}  Nbd7 {[%clk 0:02:49]} 8. Be2 {[%clk 0:03:01]}  Re8 {[%clk 0:02:49]} 9. Bh2 {[%clk 0:03:01]}  Nf8 {[%clk 0:02:47]} 10. O-O {[%clk 0:03:01]}  N6d7 {[%clk 0:02:45]} 11. Qc2 {[%clk 0:03:01]}  e5 {[%clk 0:02:45]} 12. dxe5 {[%clk 0:03:01]}  dxe5 {[%clk 0:02:44]} 13. Rfd1 {[%clk 0:03:01]}  Qe7 {[%clk 0:02:44]} 14. Rac1 {[%clk 0:02:57]}  f5 {[%clk 0:02:42]} 15. a3 {[%clk 0:02:52]}  a5 {[%clk 0:02:36]} 16. Na4 {[%clk 0:02:50]}  Ne6 {[%clk 0:02:26]} 17. c5 {[%clk 0:02:39]}  Nc7 {[%clk 0:02:02]} 18. Bc4+ {[%clk 0:02:29]}  Kh8 {[%clk 0:01:56]} 19. b4 {[%clk 0:02:21]}  axb4 {[%clk 0:01:54]} 20. axb4 {[%clk 0:02:22]}  Nf8 {[%clk 0:01:36]} 21. Nb6 {[%clk 0:02:18]}  Ra7 {[%clk 0:01:32]} 22. h4 {[%clk 0:02:15]}  Be6 {[%clk 0:01:31]} 23. Nxe5 {[%clk 0:02:12]}  Bxc4 {[%clk 0:01:28]} 24. Nexc4 {[%clk 0:02:10]}  Nb5 {[%clk 0:01:25]} 25. h5 {[%clk 0:02:01]}  Qh4 {[%clk 0:01:17]} 26. Nd6 {[%clk 0:01:52]}  Re7 {[%clk 0:01:08]} 27. Nxb5 {[%clk 0:01:23]}  cxb5 {[%clk 0:01:04]} 28. hxg6 {[%clk 0:01:08]}  hxg6 {[%clk 0:01:00]} 29. Bg3 {[%clk 0:01:05]}  Qh5 {[%clk 0:00:58]} 30. Rd8 {[%clk 0:01:00]}  Kh7 {[%clk 0:00:49]} 31. Qd3 {[%clk 0:00:58]}  Ne6 {[%clk 0:00:44]} 32. Rd7 {[%clk 0:00:55]}  Rxd7 {[%clk 0:00:37]} 33. Nxd7 {[%clk 0:00:54]}  Ng5 {[%clk 0:00:38]} 34. Qxb5 {[%clk 0:00:46]}  Ra2 {[%clk 0:00:37]} 35. Qxb7 {[%clk 0:00:42]}  Kh6 {[%clk 0:00:32]} 36. Bf4 {[%clk 0:00:37]}  Qe2 {[%clk 0:00:31]} 37. Rf1 {[%clk 0:00:35]}  Kh5 {[%clk 0:00:29]} 38. Bxg5 {[%clk 0:00:34]}  Kxg5 {[%clk 0:00:27]} 39. Qd5 {[%clk 0:00:26]}  Bc3 {[%clk 0:00:21]} 40. b5 {[%clk 0:00:22]}  Be1 {[%clk 0:00:22]} 41. Qf3 {[%clk 0:00:20]}  Qxf3 {[%clk 0:00:13]} 42. gxf3 {[%clk 0:00:20]}  Ba5 {[%clk 0:00:13]} 43. b6 {[%clk 0:00:20]}  Rd2 {[%clk 0:00:11]} 44. b7 {[%clk 0:00:20]}  Bc7 {[%clk 0:00:10]} 45. b8=Q {[%clk 0:00:20]}  Bxb8 {[%clk 0:00:11]} 46. Nxb8 {[%clk 0:00:21]}  Rb2 {[%clk 0:00:10]} 47. Nd7 {[%clk 0:00:21]}  Rb7 {[%clk 0:00:11]} 48. Ne5 {[%clk 0:00:20]}  Rc7 {[%clk 0:00:11]} 49. c6 {[%clk 0:00:20]}  Kf6 {[%clk 0:00:12]} 50. f4 {[%clk 0:00:21]}  g5 {[%clk 0:00:13]} 51. Kg2 {[%clk 0:00:21]}  gxf4 {[%clk 0:00:13]} 52. exf4 {[%clk 0:00:22]}  Ke6 {[%clk 0:00:12]} 53. Rd1 {[%clk 0:00:22]} 1-0


[Site "https://www.chess.com"]

[Event "Titled Tuesday Blitz October 25 Late 2022"]
[White "Baglan, Esat"]
[Black "Zilleruelo Irizarry, Diego"]
[WhiteFideId "6309216"]
[BlackFideId "3101460"]
[WhiteElo "2231"]
[BlackElo "1998"]
[Result "1-0"]
[Round "11"]
[TimeControl "180+1"]
[Date "2022.10.26"]
[WhiteClock "0:01:06"]
[BlackClock "0:01:05"]

1. e4 {[%clk 0:02:57]}  c6 {[%clk 0:03:00]} 2. Nc3 {[%clk 0:02:54]}  d5 {[%clk 0:03:01]} 3. Nf3 {[%clk 0:02:55]}  Bg4 {[%clk 0:03:01]} 4. h3 {[%clk 0:02:54]}  Bxf3 {[%clk 0:03:01]} 5. Qxf3 {[%clk 0:02:54]}  e6 {[%clk 0:03:02]} 6. d3 {[%clk 0:02:51]}  Nf6 {[%clk 0:03:02]} 7. g4 {[%clk 0:02:50]}  dxe4 {[%clk 0:03:00]} 8. dxe4 {[%clk 0:02:48]}  h6 {[%clk 0:02:59]} 9. e5 {[%clk 0:02:44]}  Nd5 {[%clk 0:02:58]} 10. Ne4 {[%clk 0:02:44]}  Nd7 {[%clk 0:02:56]} 11. Qg3 {[%clk 0:02:39]}  Nb4 {[%clk 0:02:34]} 12. Bd3 {[%clk 0:02:28]}  Nxd3+ {[%clk 0:02:34]} 13. cxd3 {[%clk 0:02:29]}  Qa5+ {[%clk 0:02:29]} 14. Bd2 {[%clk 0:02:27]}  Qxe5 {[%clk 0:02:29]} 15. Bf4 {[%clk 0:02:22]}  Bb4+ {[%clk 0:02:22]} 16. Kf1 {[%clk 0:02:18]}  Qxb2 {[%clk 0:02:22]} 17. Kg2 {[%clk 0:02:18]}  O-O {[%clk 0:01:33]} 18. Rab1 {[%clk 0:02:16]}  Qd4 {[%clk 0:01:33]} 19. Be3 {[%clk 0:01:43]}  Qxd3 {[%clk 0:01:33]} 20. Rxb4 {[%clk 0:01:43]}  a5 {[%clk 0:01:34]} 21. Rd4 {[%clk 0:01:43]}  Qc2 {[%clk 0:01:32]} 22. Rc1 {[%clk 0:01:40]}  Qxa2 {[%clk 0:01:32]} 23. Rxd7 {[%clk 0:01:39]}  Rfd8 {[%clk 0:01:32]} 24. Rcd1 {[%clk 0:01:28]}  Rxd7 {[%clk 0:01:19]} 25. Rxd7 {[%clk 0:01:29]}  a4 {[%clk 0:01:19]} 26. Qe5 {[%clk 0:01:18]}  Qb1 {[%clk 0:01:15]} 27. Bd4 {[%clk 0:01:07]}  f6 {[%clk 0:01:05]} 28. Rxg7+ {[%clk 0:01:06]} 1-0


[Site "https://www.chess.com"]

[Event "Titled Tuesday Blitz October 25 Late 2022"]
[White "Banzea, Alexandru-Bogdan"]
[Black "Sztokbant, Bernardo Vainzoff"]
[WhiteFideId "1232622"]
[BlackFideId "2115956"]
[WhiteElo "2294"]
[BlackElo "2171"]
[Result "1-0"]
[Round "11"]
[TimeControl "180+1"]
[Date "2022.10.26"]
[WhiteClock "0:00:13"]
[BlackClock "0:00:08"]

1. d4 {[%clk 0:02:28]}  d5 {[%clk 0:02:59]} 2. Nf3 {[%clk 0:02:28]}  c6 {[%clk 0:02:59]} 3. Bf4 {[%clk 0:02:28]}  Bf5 {[%clk 0:03:00]} 4. e3 {[%clk 0:02:28]}  e6 {[%clk 0:03:00]} 5. c4 {[%clk 0:02:29]}  Nd7 {[%clk 0:03:00]} 6. Qb3 {[%clk 0:02:29]}  Qb6 {[%clk 0:02:59]} 7. c5 {[%clk 0:02:26]}  Qxb3 {[%clk 0:02:59]} 8. axb3 {[%clk 0:02:27]}  Bxb1 {[%clk 0:02:59]} 9. Rxb1 {[%clk 0:02:28]}  a6 {[%clk 0:02:56]} 10. b4 {[%clk 0:02:28]}  Ngf6 {[%clk 0:02:51]} 11. h4 {[%clk 0:02:27]}  Nh5 {[%clk 0:02:44]} 12. Bh2 {[%clk 0:02:22]}  f5 {[%clk 0:02:41]} 13. Ra1 {[%clk 0:02:20]}  Rc8 {[%clk 0:02:41]} 14. Nd2 {[%clk 0:02:03]}  Be7 {[%clk 0:02:37]} 15. Nb3 {[%clk 0:01:58]}  Bd8 {[%clk 0:02:36]} 16. Na5 {[%clk 0:01:58]}  Bxa5 {[%clk 0:02:35]} 17. bxa5 {[%clk 0:01:59]}  Nhf6 {[%clk 0:02:35]} 18. Ra4 {[%clk 0:01:47]}  Ra8 {[%clk 0:02:34]} 19. Rb4 {[%clk 0:01:47]}  Ra7 {[%clk 0:02:34]} 20. f3 {[%clk 0:01:45]}  O-O {[%clk 0:02:34]} 21. Kd2 {[%clk 0:01:44]}  Re8 {[%clk 0:02:30]} 22. Be2 {[%clk 0:01:42]}  e5 {[%clk 0:02:28]} 23. Ra1 {[%clk 0:01:40]}  f4 {[%clk 0:02:10]} 24. exf4 {[%clk 0:01:05]}  exd4 {[%clk 0:02:10]} 25. Rc1 {[%clk 0:01:05]}  g6 {[%clk 0:01:48]} 26. Rxd4 {[%clk 0:01:05]}  Nf8 {[%clk 0:01:45]} 27. Rb4 {[%clk 0:00:59]}  N6d7 {[%clk 0:01:40]} 28. Bd3 {[%clk 0:00:55]}  Ne6 {[%clk 0:01:40]} 29. Bg1 {[%clk 0:00:55]}  Rf8 {[%clk 0:01:34]} 30. g3 {[%clk 0:00:55]}  Rf7 {[%clk 0:01:25]} 31. Bd4 {[%clk 0:00:12]}  Kf8 {[%clk 0:01:21]} 32. Ke3 {[%clk 0:00:12]}  Re7 {[%clk 0:01:17]} 33. Kf2 {[%clk 0:00:11]}  Ke8 {[%clk 0:01:03]} 34. f5 {[%clk 0:00:11]}  Nxd4 {[%clk 0:01:02]} 35. Rxd4 {[%clk 0:00:11]}  gxf5 {[%clk 0:00:45]} 36. Bxf5 {[%clk 0:00:12]}  Ra8 {[%clk 0:00:41]} 37. Bxd7+ {[%clk 0:00:05]}  Kxd7 {[%clk 0:00:40]} 38. Re1 {[%clk 0:00:06]}  Rf7 {[%clk 0:00:34]} 39. Re5 {[%clk 0:00:06]}  Rg8 {[%clk 0:00:29]} 40. f4 {[%clk 0:00:05]}  Rfg7 {[%clk 0:00:27]} 41. Rg5 {[%clk 0:00:06]}  h6 {[%clk 0:00:20]} 42. Rxg7+ {[%clk 0:00:05]}  Rxg7 {[%clk 0:00:21]} 43. Rb4 {[%clk 0:00:05]}  Ke6 {[%clk 0:00:21]} 44. Rb3 {[%clk 0:00:06]}  d4 {[%clk 0:00:19]} 45. Rf3 {[%clk 0:00:04]}  Kf5 {[%clk 0:00:17]} 46. Ke2 {[%clk 0:00:04]}  Ke4 {[%clk 0:00:16]} 47. Rf1 {[%clk 0:00:01]}  Rxg3 {[%clk 0:00:16]} 48. f5 {[%clk 0:00:02]}  Rg7 {[%clk 0:00:10]} 49. f6 {[%clk 0:00:02]}  Rf7 {[%clk 0:00:10]} 50. Kd2 {[%clk 0:00:03]}  Kd5 {[%clk 0:00:08]} 51. Kd3 {[%clk 0:00:03]}  Kxc5 {[%clk 0:00:08]} 52. Rf5+ {[%clk 0:00:04]}  Kd6 {[%clk 0:00:06]} 53. Kxd4 {[%clk 0:00:04]}  Ke6 {[%clk 0:00:06]} 54. Rf1 {[%clk 0:00:05]}  Rxf6 {[%clk 0:00:04]} 55. Rxf6+ {[%clk 0:00:06]}  Kxf6 {[%clk 0:00:05]} 56. Kc5 {[%clk 0:00:07]}  Kf5 {[%clk 0:00:03]} 57. Kb6 {[%clk 0:00:08]}  Kg4 {[%clk 0:00:04]} 58. Kxb7 {[%clk 0:00:08]}  Kxh4 {[%clk 0:00:04]} 59. Kxa6 {[%clk 0:00:09]}  Kg3 {[%clk 0:00:04]} 60. Kb6 {[%clk 0:00:09]}  h5 {[%clk 0:00:05]} 61. a6 {[%clk 0:00:10]}  h4 {[%clk 0:00:06]} 62. a7 {[%clk 0:00:11]}  h3 {[%clk 0:00:07]} 63. a8=Q {[%clk 0:00:12]}  h2 {[%clk 0:00:08]} 64. Qg8+ {[%clk 0:00:12]}  Kf2 {[%clk 0:00:08]} 65. Qh8 {[%clk 0:00:12]}  Kg1 {[%clk 0:00:08]} 66. Qxh2+ {[%clk 0:00:13]}  Kxh2 {[%clk 0:00:08]} 67. Kxc6 {[%clk 0:00:13]} 1-0


[Site "https://www.chess.com"]

[Event "Titled Tuesday Blitz October 25 Late 2022"]
[White "Bilan, Danila"]
[Black "Arabidze, Meri"]
[WhiteFideId "24161918"]
[BlackFideId "13604040"]
[WhiteElo "2203"]
[BlackElo "2403"]
[Result "1-0"]
[Round "11"]
[TimeControl "180+1"]
[Date "2022.10.26"]
[WhiteClock "0:00:07"]
[BlackClock "0:00:09"]

1. d4 {[%clk 0:02:55]}  Nf6 {[%clk 0:02:59]} 2. Nf3 {[%clk 0:02:55]}  e6 {[%clk 0:02:59]} 3. g3 {[%clk 0:02:55]}  b5 {[%clk 0:02:58]} 4. Bg2 {[%clk 0:02:56]}  Bb7 {[%clk 0:02:58]} 5. O-O {[%clk 0:02:56]}  d5 {[%clk 0:02:58]} 6. Bg5 {[%clk 0:02:53]}  Be7 {[%clk 0:02:57]} 7. Nbd2 {[%clk 0:02:54]}  O-O {[%clk 0:02:57]} 8. a4 {[%clk 0:02:51]}  b4 {[%clk 0:02:57]} 9. c3 {[%clk 0:02:51]}  Na6 {[%clk 0:02:53]} 10. Ne5 {[%clk 0:02:50]}  c5 {[%clk 0:02:47]} 11. Qb1 {[%clk 0:02:35]}  h6 {[%clk 0:02:43]} 12. Bxf6 {[%clk 0:02:30]}  Bxf6 {[%clk 0:02:42]} 13. e4 {[%clk 0:02:29]}  Rb8 {[%clk 0:02:07]} 14. exd5 {[%clk 0:02:21]}  Bxd5 {[%clk 0:02:07]} 15. Bxd5 {[%clk 0:02:17]}  Qxd5 {[%clk 0:02:07]} 16. Qe4 {[%clk 0:02:16]}  Bxe5 {[%clk 0:02:01]} 17. Qxe5 {[%clk 0:02:14]}  bxc3 {[%clk 0:01:53]} 18. bxc3 {[%clk 0:02:13]}  cxd4 {[%clk 0:01:53]} 19. cxd4 {[%clk 0:02:12]}  Rb2 {[%clk 0:01:50]} 20. Qxd5 {[%clk 0:02:04]}  exd5 {[%clk 0:01:50]} 21. Nf3 {[%clk 0:02:05]}  Nb4 {[%clk 0:01:38]} 22. Rfb1 {[%clk 0:02:00]}  Rxb1+ {[%clk 0:01:38]} 23. Rxb1 {[%clk 0:02:00]}  a5 {[%clk 0:01:39]} 24. Rc1 {[%clk 0:01:57]}  Nd3 {[%clk 0:01:33]} 25. Rc3 {[%clk 0:01:51]}  Nb2 {[%clk 0:01:29]} 26. Rb3 {[%clk 0:01:44]}  Nc4 {[%clk 0:01:11]} 27. Rb5 {[%clk 0:01:42]}  Rd8 {[%clk 0:01:10]} 28. Kf1 {[%clk 0:01:34]}  f6 {[%clk 0:01:07]} 29. Ke2 {[%clk 0:01:29]}  Kh7 {[%clk 0:01:05]} 30. Kd3 {[%clk 0:01:22]}  Rc8 {[%clk 0:00:53]} 31. Rxd5 {[%clk 0:01:15]}  Nb2+ {[%clk 0:00:52]} 32. Kd2 {[%clk 0:00:56]}  Ra8 {[%clk 0:00:52]} 33. Rb5 {[%clk 0:00:38]}  Nxa4 {[%clk 0:00:51]} 34. d5 {[%clk 0:00:37]}  Ra6 {[%clk 0:00:46]} 35. Kc2 {[%clk 0:00:36]}  Nb6 {[%clk 0:00:44]} 36. d6 {[%clk 0:00:33]}  Nc4 {[%clk 0:00:39]} 37. d7 {[%clk 0:00:33]}  Rd6 {[%clk 0:00:35]} 38. Rb7 {[%clk 0:00:28]}  Ne5 {[%clk 0:00:22]} 39. Nxe5 {[%clk 0:00:23]}  fxe5 {[%clk 0:00:23]} 40. Ra7 {[%clk 0:00:22]}  e4 {[%clk 0:00:16]} 41. Rxa5 {[%clk 0:00:21]}  Rxd7 {[%clk 0:00:16]} 42. Rf5 {[%clk 0:00:08]}  Kg6 {[%clk 0:00:07]} 43. Rf4 {[%clk 0:00:09]}  Rd4 {[%clk 0:00:03]} 44. Kc3 {[%clk 0:00:09]}  Rd3+ {[%clk 0:00:04]} 45. Kc2 {[%clk 0:00:09]}  Rf3 {[%clk 0:00:03]} 46. Rxf3 {[%clk 0:00:06]}  exf3 {[%clk 0:00:04]} 47. Kd3 {[%clk 0:00:07]}  Kf5 {[%clk 0:00:04]} 48. Ke3 {[%clk 0:00:04]}  Kg4 {[%clk 0:00:05]} 49. h4 {[%clk 0:00:05]}  g6 {[%clk 0:00:03]} 50. Ke4 {[%clk 0:00:05]}  h5 {[%clk 0:00:01]} 51. Ke3 {[%clk 0:00:04]}  g5 {[%clk 0:00:01]} 52. hxg5 {[%clk 0:00:05]}  Kxg5 {[%clk 0:00:02]} 53. Ke4 {[%clk 0:00:05]}  Kg4 {[%clk 0:00:02]} 54. Ke3 {[%clk 0:00:04]}  Kg5 {[%clk 0:00:03]} 55. Kxf3 {[%clk 0:00:04]}  Kf5 {[%clk 0:00:03]} 56. Kg2 {[%clk 0:00:04]}  Kg4 {[%clk 0:00:03]} 57. f3+ {[%clk 0:00:04]}  Kg5 {[%clk 0:00:04]} 58. Kf2 {[%clk 0:00:05]}  Kf5 {[%clk 0:00:04]} 59. Ke3 {[%clk 0:00:05]}  Ke5 {[%clk 0:00:04]} 60. f4+ {[%clk 0:00:05]}  Kf5 {[%clk 0:00:04]} 61. Kf3 {[%clk 0:00:06]}  Kg6 {[%clk 0:00:04]} 62. Ke4 {[%clk 0:00:06]}  Kf6 {[%clk 0:00:05]} 63. f5 {[%clk 0:00:07]}  Kg5 {[%clk 0:00:05]} 64. Ke5 {[%clk 0:00:07]}  Kg4 {[%clk 0:00:06]} 65. f6 {[%clk 0:00:08]}  Kxg3 {[%clk 0:00:06]} 66. f7 {[%clk 0:00:09]}  h4 {[%clk 0:00:07]} 67. f8=Q {[%clk 0:00:09]}  h3 {[%clk 0:00:08]} 68. Qa8 {[%clk 0:00:08]}  Kh2 {[%clk 0:00:07]} 69. Kf4 {[%clk 0:00:06]}  Kg1 {[%clk 0:00:07]} 70. Qa1+ {[%clk 0:00:06]}  Kg2 {[%clk 0:00:07]} 71. Qb2+ {[%clk 0:00:06]}  Kg1 {[%clk 0:00:08]} 72. Kg3 {[%clk 0:00:07]}  h2 {[%clk 0:00:09]} 73. Qc1# {[%clk 0:00:07]} 1-0


[Site "https://www.chess.com"]